bitfinex/quotes_BTCUSD_20241002
["timestamp","ask_amount","ask_price","bid_price","bid_amount"]
[1727875268447,0.02648381,61088.0,61087.0,0.0220638]
[1727875268685,0.28148381,61088.0,61087.0,0.0220638]
[1727875269224,0.28148381,61088.0,61087.0,0.012]
[1727875269463,0.44518181,61088.0,61087.0,0.0203956]
[1727875269712,0.28148381,61088.0,61087.0,0.0203956]
[1727875269954,0.02648381,61088.0,61087.0,0.25161966]
[1727875270190,0.02648381,61088.0,61087.0,0.0153956]
[1727875270451,0.1921975,61088.0,61087.0,0.0153956]
[1727875270690,0.1921975,61088.0,61087.0,0.01]
[1727875270942,0.1921975,61088.0,61087.0,0.003]
[1727875271185,0.1921975,61088.0,61087.0,0.008]
[1727875271690,0.163725,61078.0,61076.0,0.0329]
[1727875271933,0.1921975,61088.0,61087.0,0.001]
[1727875272160,0.327434,61081.0,61077.0,0.00846262]
[1727875272364,0.16372,61080.0,61076.0,0.19663]
[1727875272572,0.163722,61079.0,61078.0,0.0084562]
[1727875272786,0.24625083,61086.0,61077.0,0.00846262]
[1727875272993,0.327447,61079.0,61071.0,0.327485]
[1727875273202,0.491179,61078.0,61073.0,0.163736]
[1727875273416,0.327453,61078.0,61073.0,0.163736]
[1727875273638,0.163727,61077.0,61073.0,0.163736]
[1727875273891,0.163731,61076.0,61073.0,0.196636]
[1727875274104,0.327456,61077.0,61073.0,0.0329]
[1727875274316,0.163731,61076.0,61073.0,0.0329]
[1727875274545,0.163731,61076.0,61073.0,0.0419]
[1727875274798,0.327437,61081.0,61073.0,0.0419]
[1727875274799,0.327437,61081.0,61073.0,0.009]
[1727875275046,0.700818,61088.0,61077.0,0.327451]
[1727875275250,0.700818,61088.0,61084.0,0.19186022]
[1727875275502,0.40995583,61086.0,61082.0,0.163713]
[1727875275710,0.700818,61088.0,61081.0,0.32743]
[1727875275974,0.700818,61088.0,61076.0,0.0329]
[1727875275975,0.700818,61088.0,61084.0,0.19186022]
[1727875276386,0.000818,61088.0,61080.0,0.0329]
[1727875276659,0.164517,61088.0,61084.0,0.163708]
[1727875277093,0.165517,61088.0,61085.0,0.163704]
[1727875277304,0.001818,61088.0,61082.0,0.0329]
[1727875277510,0.001818,61088.0,61077.0,0.003]
[1727875277511,0.163721,61080.0,61077.0,0.166726]
[1727875277718,0.163704,61086.0,61082.0,0.163712]
[1727875277953,0.000818,61088.0,61084.0,0.005]
[1727875278412,0.163701,61087.0,61084.0,0.168708]
[1727875278625,0.163703,61086.0,61085.0,0.00843635]
[1727875278859,0.163703,61086.0,61084.0,0.005]
[1727875279083,0.163706,61085.0,61084.0,0.005]
[1727875279304,0.02850079,61088.0,61078.0,0.09748455]
[1727875279542,0.02850079,61088.0,61079.0,0.12366233]
[1727875279800,0.60181705,61085.0,61084.0,0.008]
[1727875279997,0.163719,61080.0,61076.0,0.16373]
[1727875280249,0.163722,61079.0,61076.0,0.16373]
[1727875280488,0.163722,61079.0,61076.0,0.03283]
[1727875280489,0.163727,61077.0,61076.0,0.03283]
[1727875280702,0.163727,61077.0,61076.0,0.0688613]
[1727875280909,0.163725,61078.0,61076.0,0.03283]
[1727875281119,0.327447,61079.0,61076.0,0.03283]
[1727875281120,0.163722,61079.0,61076.0,0.03283]
[1727875281338,0.327445,61079.0,61076.0,0.03283]
[1727875281550,0.163733,61075.0,61074.0,0.03283]
[1727875281767,0.327445,61079.0,61075.0,0.163731]
[1727875281768,0.163725,61078.0,61075.0,0.163731]
[1727875281977,0.327445,61079.0,61076.0,0.2261337]
[1727875281978,0.163722,61079.0,61076.0,0.2261337]
[1727875282185,0.163722,61079.0,61076.0,0.2161337]
[1727875282402,0.163722,61079.0,61076.0,0.17073]
[1727875282615,0.163722,61079.0,61076.0,0.17873]
[1727875282835,0.163722,61079.0,61076.0,0.16373]
[1727875283072,0.163722,61079.0,61073.0,0.360306]
[1727875283073,0.18939243,61079.0,61075.0,0.163732]
[1727875283280,0.18939243,61079.0,61076.0,0.168729]
[1727875283487,0.18939243,61079.0,61076.0,0.2941272]
[1727875283909,0.18939243,61079.0,61076.0,0.1303982]
[1727875283910,0.35311743,61079.0,61076.0,0.1303982]
[1727875284117,0.327451,61078.0,61076.0,0.007]
[1727875284377,0.163725,61078.0,61076.0,0.007]
[1727875284798,0.18939243,61079.0,61076.0,0.007]
[1727875285221,0.02567043,61079.0,61076.0,0.0933517]
[1727875285429,0.02567043,61079.0,61076.0,0.163729]
[1727875285659,0.02567043,61079.0,61076.0,0.008]
[1727875285872,0.163726,61078.0,61076.0,0.008]
[1727875286101,0.163726,61078.0,61075.0,0.163732]
[1727875286300,0.32743,61082.0,61075.0,0.163732]
[1727875286301,0.32743,61082.0,61077.0,0.163727]
[1727875286509,0.163721,61080.0,61077.0,0.163727]
[1727875286738,0.163721,61080.0,61076.0,0.012]
[1727875286739,0.163727,61077.0,61076.0,0.007]
[1727875286954,0.24524269,61077.0,61076.0,0.007]
[1727875287173,0.24524269,61077.0,61076.0,0.013]
[1727875287669,0.24524269,61077.0,61076.0,0.007]
[1727875287884,0.163751,61068.0,61065.0,0.001636]
[1727875288784,0.16576669,61068.0,61065.0,0.001636]
[1727875289416,0.16576669,61068.0,61067.0,0.005636]
[1727875289626,0.16576669,61068.0,61067.0,0.007636]
[1727875290050,0.163751,61068.0,61067.0,0.007636]
[1727875290266,0.16576669,61068.0,61067.0,0.005636]
[1727875290502,0.41201752,61068.0,61067.0,0.005636]
[1727875290718,0.48760183,61068.0,61067.0,0.005636]
[1727875290992,0.53521122,61068.0,61067.0,0.001636]
[1727875291228,0.53521122,61068.0,61065.0,0.001636]
[1727875291229,0.56996022,61068.0,61065.0,0.001636]
[1727875291452,0.002,61063.0,61050.0,0.24625083]
[1727875291676,0.163797,61051.0,61050.0,0.24625083]
[1727875292115,0.163812,61046.0,61043.0,0.24625083]
[1727875292356,0.163814,61045.0,61043.0,0.30692441]
[1727875292582,0.163814,61045.0,61044.0,0.00883105]
[1727875293036,0.163816,61044.0,61043.0,0.06067358]
[1727875293286,0.327592,61052.0,61043.0,0.06067358]
[1727875293521,0.163819,61043.0,61040.0,0.163826]
[1727875293787,0.163816,61044.0,61043.0,0.005]
[1727875294775,0.16583169,61044.0,61043.0,0.005]
[1727875295499,0.163816,61044.0,61043.0,0.01]
[1727875295761,0.327622,61046.0,61043.0,0.005]
[1727875296012,0.14705261,61087.0,61043.0,0.005]
[1727875296013,0.51905,61060.0,61043.0,0.005]
[1727875296278,0.24625083,61049.0,61043.0,0.168817]
[1727875296531,0.163808,61047.0,61043.0,0.168817]
[1727875297035,0.163808,61047.0,61043.0,0.173817]
[1727875297520,0.163808,61047.0,61043.0,0.168817]
[1727875297764,0.327608,61049.0,61043.0,0.012]
[1727875298027,0.18949044,61048.0,61044.0,0.163814]
[1727875298269,0.163807,61048.0,61044.0,0.163814]
[1727875298512,0.163809,61047.0,61043.0,0.174818]
[1727875298754,0.163809,61047.0,61043.0,0.167818]
[1727875299046,0.327617,61047.0,61043.0,0.004]
[1727875299313,0.163816,61044.0,61043.0,0.005]
[1727875299590,0.163816,61044.0,61041.0,0.196653]
[1727875299844,0.327623,61046.0,61042.0,0.0524314]
[1727875300124,0.163818,61043.0,61042.0,0.00885727]
[1727875300651,0.02568365,61047.0,61039.0,0.327654]
[1727875300927,0.35330265,61047.0,61043.0,0.007]
[1727875301141,0.02568365,61047.0,61043.0,0.03763377]
[1727875301350,0.18949165,61047.0,61044.0,0.00884145]
[1727875301581,0.18949165,61047.0,61045.0,0.07377954]
[1727875302010,0.18949165,61047.0,61046.0,0.0088286]
[1727875302233,0.18949165,61047.0,61045.0,0.07377954]
[1727875302463,0.18949165,61047.0,61046.0,0.0088286]
[1727875302694,0.02568365,61047.0,61046.0,0.0088286]
[1727875302907,0.02568365,61047.0,61045.0,0.07377954]
[1727875303129,0.16381,61046.0,61044.0,0.004]
[1727875303360,0.16381,61046.0,61044.0,0.0930428]
[1727875303624,0.02568365,61047.0,61044.0,0.0930428]
[1727875303847,0.18949265,61047.0,61044.0,0.0930428]
[1727875304071,0.18949265,61047.0,61044.0,0.2528578]
[1727875304309,0.18949265,61047.0,61046.0,0.004]
[1727875304310,0.02568365,61047.0,61046.0,0.004]
[1727875304767,0.02568365,61047.0,61046.0,0.16381]
[1727875304987,0.4763,61067.0,61047.0,0.327614]
[1727875304988,0.24625083,61055.0,61047.0,0.327614]
[1727875305205,0.163793,61053.0,61049.0,0.163801]
[1727875305420,0.163793,61053.0,61050.0,0.23262082]
[1727875305704,0.3276,61050.0,61045.0,0.002]
[1727875305932,0.163814,61045.0,61041.0,0.165458]
[1727875306175,0.327621,61047.0,61041.0,0.001636]
[1727875306391,0.163817,61044.0,61041.0,0.001636]
[1727875306609,0.163813,61046.0,61041.0,0.001636]
[1727875306830,0.327596,61051.0,61042.0,0.327639]
[1727875307086,0.19186022,61060.0,61042.0,0.327639]
[1727875307087,0.163781,61057.0,61051.0,0.327591]
[1727875307356,0.24625083,61054.0,61053.0,0.163792]
[1727875307594,0.327555,61059.0,61052.0,0.360418]
[1727875307850,0.327555,61059.0,61053.0,0.163791]
[1727875307851,0.163781,61057.0,61053.0,0.163791]
[1727875308371,0.02567973,61058.0,61055.0,0.163785]
[1727875308657,0.163766,61063.0,61059.0,0.163775]
[1727875308922,0.163762,61064.0,61060.0,0.163772]
[1727875309195,0.163763,61064.0,61060.0,0.163772]
[1727875309457,0.163763,61064.0,61058.0,0.0751]
[1727875309715,0.163764,61064.0,61058.0,0.0751]
[1727875310004,0.000818,61065.0,61062.0,0.163767]
[1727875310487,0.000818,61065.0,61058.0,0.0751]
[1727875310488,0.32834,61065.0,61058.0,0.0751]
[1727875310748,0.164578,61065.0,61061.0,0.163768]
[1727875311315,0.164578,61065.0,61064.0,0.196592]
[1727875311316,0.000818,61065.0,61064.0,0.196592]
[1727875311503,0.02649408,61065.0,61062.0,0.327534]
[1727875311719,0.02649408,61065.0,61058.0,0.327553]
[1727875311936,0.02649408,61065.0,61055.0,0.0851782]
[1727875311937,0.163766,61063.0,61060.0,0.163772]
[1727875312149,0.35703177,61065.0,61059.0,0.163775]
[1727875312366,0.02749408,61065.0,61059.0,0.09040842]
[1727875312613,0.02749408,61065.0,61064.0,0.012]
[1727875313049,0.000818,61065.0,61064.0,0.012]
[1727875313264,0.000818,61065.0,61064.0,0.09789322]
[1727875313478,0.000818,61065.0,61064.0,0.26165522]
[1727875313707,0.164577,61065.0,61064.0,0.012]
[1727875313918,0.000818,61065.0,61064.0,0.175762]
[1727875314359,0.000818,61065.0,61064.0,0.163762]
[1727875315234,0.164577,61065.0,61064.0,0.003]
[1727875315449,0.27116118,61065.0,61064.0,0.003]
[1727875315666,0.27116118,61065.0,61064.0,0.001]
[1727875315889,0.164577,61065.0,61064.0,0.001]
[1727875316333,0.19025451,61065.0,61064.0,0.001]
[1727875316817,0.19125451,61065.0,61064.0,0.001]
[1727875317483,0.163774,61060.0,61056.0,0.163781]
[1727875317711,0.163784,61056.0,61055.0,0.27908083]
[1727875317938,0.163786,61055.0,61054.0,0.001636]
[1727875318153,0.327553,61059.0,61054.0,0.001636]
[1727875318376,0.163781,61057.0,61054.0,0.165424]
[1727875318597,0.163781,61057.0,61054.0,0.001636]
[1727875319029,0.163786,61055.0,61054.0,0.001636]
[1727875319241,0.16580169,61055.0,61054.0,0.001636]
[1727875319480,0.16580169,61055.0,61054.0,0.008636]
[1727875319961,0.16580169,61055.0,61054.0,0.001636]
[1727875320208,0.163786,61055.0,61054.0,0.001636]
[1727875320502,0.00201569,61056.0,61054.0,0.001636]
[1727875320744,0.327553,61059.0,61054.0,0.001636]
[1727875320745,0.163776,61059.0,61054.0,0.337214]
[1727875320942,0.163779,61058.0,61054.0,0.179423]
[1727875321158,0.18945797,61058.0,61055.0,0.163786]
[1727875321373,0.163782,61057.0,61054.0,0.007636]
[1727875321605,0.00201569,61056.0,61054.0,0.007636]
[1727875321823,0.163784,61056.0,61054.0,0.007636]
[1727875322039,0.163781,61057.0,61054.0,0.178424]
[1727875322261,0.02567897,61058.0,61055.0,0.327572]
[1727875322479,0.02567897,61058.0,61057.0,0.163781]
[1727875322704,0.02567897,61058.0,61055.0,0.51943222]
[1727875322705,0.24625083,61063.0,61062.0,0.163767]
[1727875322979,0.164579,61065.0,61064.0,0.163762]
[1727875322980,0.000818,61065.0,61064.0,0.163762]
[1727875323403,0.000818,61065.0,61064.0,0.196592]
[1727875323622,0.000818,61065.0,61064.0,0.32618262]
[1727875326954,0.000818,61065.0,61064.0,0.34018262]
[1727875327181,0.000818,61065.0,61064.0,0.35418262]
[1727875330026,0.02649075,61065.0,61064.0,0.35418262]
[1727875331768,0.02649075,61065.0,61064.0,0.36284668]
[1727875334500,0.40997583,61078.0,61064.0,0.19908468]
[1727875334501,0.00201569,61077.0,61064.0,0.19908468]
[1727875334761,0.24625083,61070.0,61069.0,0.163748]
[1727875335006,0.327462,61076.0,61071.0,0.163741]
[1727875335007,0.163735,61075.0,61071.0,0.163741]
[1727875335256,0.00201569,61074.0,61072.0,0.16374]
[1727875335507,0.00201569,61074.0,61072.0,0.17235268]
[1727875335756,0.163738,61073.0,61072.0,0.00861268]
[1727875336003,0.163738,61073.0,61070.0,0.163745]
[1727875336257,0.163738,61073.0,61072.0,0.00861268]
[1727875336496,0.327473,61074.0,61071.0,0.01361911]
[1727875336754,0.327467,61075.0,61068.0,0.03283]
[1727875337001,0.163744,61071.0,61069.0,0.06042229]
[1727875337245,0.327467,61075.0,61069.0,0.06042229]
[1727875337503,0.1851,61080.0,61069.0,0.06042229]
[1727875337759,0.02567309,61073.0,61071.0,0.168741]
[1727875338285,0.02567309,61073.0,61071.0,0.005]
[1727875338498,0.02567309,61073.0,61072.0,0.170741]
[1727875338735,0.18941109,61073.0,61072.0,0.007]
[1727875338976,0.19142678,61073.0,61070.0,0.163746]
[1727875339216,0.163742,61072.0,61069.0,0.167748]
[1727875339461,0.163742,61072.0,61071.0,0.007]
[1727875339720,0.163742,61072.0,61069.0,0.163748]
[1727875340253,0.02649109,61073.0,61068.0,0.360332]
[1727875340494,0.163741,61072.0,61069.0,0.163747]
[1727875341005,0.19023009,61073.0,61071.0,0.007]
[1727875341241,0.163741,61072.0,61071.0,0.007]
[1727875341478,0.00201569,61072.0,61071.0,0.007]
[1727875341713,0.02649109,61073.0,61071.0,0.015]
[1727875341984,0.02649109,61073.0,61072.0,0.163741]
[1727875342823,0.02649109,61073.0,61071.0,0.0515332]
[1727875342824,0.000818,61073.0,61071.0,0.0445332]
[1727875343063,0.000818,61073.0,61072.0,0.163741]
[1727875343607,0.000818,61073.0,61072.0,0.170741]
[1727875343843,0.000818,61073.0,61072.0,0.31288584]
[1727875344804,0.000818,61073.0,61072.0,0.31188584]
[1727875345776,0.000818,61073.0,61072.0,0.31888584]
[1727875346028,0.02648851,61073.0,61072.0,0.31888584]
[1727875346260,0.000818,61073.0,61072.0,0.31888584]
[1727875346513,0.000818,61073.0,61072.0,0.30588584]
[1727875346766,0.000818,61073.0,61072.0,0.31447478]
[1727875347020,0.000818,61073.0,61072.0,0.33347478]
[1727875348801,0.164556,61073.0,61072.0,0.02758894]
[1727875349054,0.16657169,61073.0,61072.0,0.02758894]
[1727875349287,0.16657169,61073.0,61072.0,0.019]
[1727875349516,0.19224516,61073.0,61072.0,0.019]
[1727875350899,0.16657169,61073.0,61072.0,0.019]
[1727875351121,0.35887169,61073.0,61072.0,0.019]
[1727875351338,0.356856,61073.0,61072.0,0.019]
[1727875351759,0.356856,61073.0,61072.0,0.009]
[1727875352210,0.356856,61073.0,61064.0,0.001636]
[1727875352211,0.163759,61065.0,61064.0,0.001636]
[1727875352675,0.163759,61065.0,61064.0,0.01025016]
[1727875352895,0.163759,61065.0,61064.0,0.001636]
[1727875353564,0.193118,61073.0,61064.0,0.001636]
[1727875353565,0.000818,61073.0,61064.0,0.001636]
[1727875353780,0.000818,61073.0,61067.0,0.163752]
[1727875353781,0.163747,61070.0,61067.0,0.163752]
[1727875353998,0.163747,61070.0,61068.0,0.07979942]
[1727875354257,0.02567541,61071.0,61070.0,0.196576]
[1727875354475,0.000818,61073.0,61070.0,0.03283]
[1727875354685,0.000818,61073.0,61072.0,0.38843122]
[1727875355161,0.000818,61073.0,61072.0,0.39702042]
[1727875356295,0.000818,61073.0,61072.0,0.41102042]
[1727875357452,0.000818,61073.0,61072.0,0.48752042]
[1727875357589,0.000818,61073.0,61072.0,0.49952042]
[1727875357786,0.02648747,61073.0,61072.0,0.66440224]
[1727875357994,0.000818,61073.0,61072.0,0.65240224]
[1727875358225,0.000818,61073.0,61072.0,0.63840224]
[1727875358709,0.000818,61073.0,61072.0,0.65240224]
[1727875358954,0.000818,61073.0,61072.0,0.81709669]
[1727875359182,0.000818,61073.0,61072.0,0.89071344]
[1727875359400,0.000818,61073.0,61072.0,0.88014639]
[1727875359648,0.000818,61073.0,61072.0,0.83109669]
[1727875359850,0.000818,61073.0,61072.0,0.91525235]
[1727875360541,0.000818,61073.0,61072.0,0.81709669]
[1727875360750,0.000818,61073.0,61072.0,0.80309669]
[1727875360960,0.000818,61073.0,61072.0,0.81709669]
[1727875361613,0.000818,61073.0,61072.0,0.89064504]
[1727875361897,0.000818,61073.0,61072.0,0.90464504]
[1727875362112,0.000818,61073.0,61072.0,0.46054202]
[1727875362377,0.000818,61073.0,61072.0,0.47454202]
[1727875362621,0.000818,61073.0,61072.0,0.22030102]
[1727875362833,0.000818,61073.0,61072.0,0.23430102]
[1727875363050,0.000818,61073.0,61072.0,0.36521202]
[1727875363269,0.000818,61073.0,61072.0,0.33721202]
[1727875363487,0.000818,61073.0,61072.0,0.35121202]
[1727875363703,0.000818,61073.0,61072.0,0.36521202]
[1727875364149,0.000818,61073.0,61072.0,0.39804202]
[1727875364362,0.02648809,61073.0,61072.0,0.36521202]
[1727875364818,0.000818,61073.0,61072.0,0.55707224]
[1727875365061,0.000818,61073.0,61072.0,0.58990224]
[1727875365700,0.000818,61073.0,61072.0,1.17892912]
[1727875365915,0.000818,61073.0,61072.0,1.25459127]
[1727875366092,0.000818,61073.0,61072.0,1.25259127]
[1727875366543,0.000818,61073.0,61072.0,1.25209127]
[1727875368501,0.000818,61073.0,61072.0,1.12939669]
[1727875369131,0.000818,61073.0,61072.0,1.12909669]
[1727875369347,0.000818,61073.0,61072.0,1.12849669]
[1727875369555,0.000818,61073.0,61072.0,1.12839669]
[1727875369761,0.000818,61073.0,61072.0,1.13039669]
[1727875369972,0.000818,61073.0,61072.0,1.13009669]
[1727875370174,0.000818,61073.0,61072.0,1.12989669]
[1727875370388,0.000818,61073.0,61072.0,1.12749669]
[1727875370804,0.000818,61073.0,61072.0,1.13343064]
[1727875371013,0.000818,61073.0,61072.0,1.13513064]
[1727875371219,0.000818,61073.0,61072.0,1.13754541]
[1727875371430,0.000818,61073.0,61072.0,1.13744541]
[1727875371641,0.000818,61073.0,61072.0,1.13734541]
[1727875371850,0.000818,61073.0,61072.0,1.13694541]
[1727875372056,0.000818,61073.0,61072.0,1.13664541]
[1727875372266,0.000818,61073.0,61072.0,1.13644541]
[1727875372473,0.000818,61073.0,61072.0,1.25423976]
[1727875372722,0.000818,61073.0,61072.0,1.13113064]
[1727875372928,0.000818,61073.0,61072.0,1.13093064]
[1727875373139,0.000818,61073.0,61072.0,1.13073064]
[1727875373362,0.000818,61073.0,61072.0,0.6799577]
[1727875373579,0.000818,61073.0,61072.0,0.36574597]
[1727875373790,0.000818,61073.0,61072.0,0.20200497]
[1727875374007,0.000818,61073.0,61072.0,0.03712315]
[1727875374630,0.000818,61073.0,61072.0,0.06995315]
[1727875374631,0.164556,61073.0,61072.0,0.06995315]
[1727875374844,0.000818,61073.0,61072.0,0.03712315]
[1727875375282,0.000818,61073.0,61072.0,0.20086415]
[1727875375705,0.000818,61073.0,61072.0,0.23369415]
[1727875375916,0.000818,61073.0,61072.0,0.31689873]
[1727875376132,0.000818,61073.0,61072.0,0.15315773]
[1727875376568,0.000818,61073.0,61072.0,0.31689873]
[1727875376751,0.000818,61073.0,61072.0,0.15315773]
[1727875377203,0.000818,61073.0,61072.0,0.31689873]
[1727875377410,0.000818,61073.0,61072.0,0.15315773]
[1727875377621,0.000818,61073.0,61072.0,0.03875915]
[1727875378128,0.16657169,61073.0,61072.0,0.03875915]
[1727875378550,0.16657169,61073.0,61072.0,0.03566995]
[1727875378768,0.16657169,61073.0,61072.0,0.029636]
[1727875378989,0.18724471,61073.0,61072.0,0.015636]
[1727875379202,0.16157169,61073.0,61072.0,0.015636]
[1727875379419,0.16157169,61073.0,61072.0,0.022636]
[1727875379850,0.16157169,61073.0,61072.0,0.008636]
[1727875380277,0.16157169,61073.0,61072.0,0.016636]
[1727875381420,0.16157169,61073.0,61072.0,0.0280197]
[1727875381633,0.16157169,61073.0,61072.0,0.016636]
[1727875382065,0.18724463,61073.0,61072.0,0.016636]
[1727875382285,0.02567294,61073.0,61072.0,0.2016987]
[1727875382787,0.40095083,61085.0,61072.0,0.0493414]
[1727875382788,0.00201569,61080.0,61072.0,0.0493414]
[1727875383011,0.24625083,61075.0,61072.0,0.0280197]
[1727875383228,0.163738,61073.0,61072.0,0.0280197]
[1727875383890,0.163738,61073.0,61072.0,0.0130197]
[1727875385516,0.163738,61073.0,61072.0,0.0190197]
[1727875385769,0.163738,61073.0,61072.0,0.0130197]
[1727875386206,0.18941001,61073.0,61072.0,0.0210197]
[1727875387099,0.02567201,61073.0,61072.0,0.0280197]
[1727875387346,0.18941001,61073.0,61072.0,0.0280197]
[1727875389007,0.27384381,61073.0,61072.0,0.0280197]
[1727875389449,0.27384381,61073.0,61072.0,0.016636]
[1727875390303,0.27466181,61073.0,61072.0,0.016636]
[1727875391180,0.19022801,61073.0,61072.0,0.016636]
[1727875391403,0.35532801,61073.0,61072.0,0.016636]
[1727875392314,0.35532801,61073.0,61072.0,0.009636]
[1727875392526,0.35532801,61073.0,61072.0,0.014636]
[1727875393031,0.35532801,61073.0,61072.0,0.006636]
[1727875393253,0.35532801,61073.0,61072.0,0.001636]
[1727875393477,0.35632801,61073.0,61072.0,0.001636]
[1727875394341,0.19122801,61073.0,61072.0,0.001636]
[1727875395430,0.19022801,61073.0,61072.0,0.001636]
[1727875395879,0.19322801,61073.0,61072.0,0.001636]
[1727875400056,0.19022801,61073.0,61072.0,0.001636]
[1727875400499,0.02649001,61073.0,61072.0,0.168377]
[1727875400714,0.02649001,61073.0,61072.0,0.004636]
[1727875400945,0.02649001,61073.0,61072.0,0.01618574]
[1727875401401,0.02649001,61073.0,61072.0,0.08611454]
[1727875401820,0.02649001,61073.0,61072.0,0.08311454]
[1727875402045,0.02649001,61073.0,61072.0,0.09011454]
[1727875402255,0.02649001,61073.0,61072.0,0.26185554]
[1727875402472,0.02649001,61073.0,61072.0,0.33705554]
[1727875402914,0.02649001,61073.0,61072.0,0.17331454]
[1727875403192,0.02649001,61073.0,61072.0,0.16531454]
[1727875403403,0.02649001,61073.0,61072.0,0.32205554]
[1727875403628,0.02649001,61073.0,61072.0,0.16831454]
[1727875403837,0.02649001,61073.0,61072.0,0.34005554]
[1727875404262,0.02649001,61073.0,61072.0,0.17631454]
[1727875406425,0.000818,61073.0,61072.0,0.17631454]
[1727875406642,0.000818,61073.0,61072.0,0.34005554]
[1727875409167,0.000818,61073.0,61072.0,0.53757999]
[1727875409412,0.000818,61073.0,61072.0,0.63757999]
[1727875409707,0.000818,61073.0,61072.0,0.68661829]
[1727875410167,0.000818,61073.0,61072.0,0.67861829]
[1727875410662,0.000818,61073.0,61072.0,0.70312545]
[1727875411149,0.000818,61073.0,61072.0,0.62957999]
[1727875411631,0.000818,61073.0,61072.0,0.63157999]
[1727875411872,0.000818,61073.0,61072.0,0.63357999]
[1727875412111,0.000818,61073.0,61072.0,0.63843158]
[1727875412582,0.000818,61073.0,61072.0,5.65243158]
[1727875414033,0.000818,61073.0,61072.0,5.75050819]
[1727875414509,0.000818,61073.0,61072.0,5.7504835]
[1727875415477,0.000818,61073.0,61072.0,5.65243158]
[1727875415715,0.000818,61073.0,61072.0,5.65743158]
[1727875415954,0.000818,61073.0,61072.0,5.78002734]
[1727875416421,0.000818,61073.0,61072.0,5.65743158]
[1727875416638,0.000818,61073.0,61072.0,5.75199732]
[1727875416846,0.000818,61073.0,61072.0,5.90859732]
[1727875417072,0.000818,61087.0,61086.0,0.163703]
[1727875417322,0.000818,61087.0,61086.0,0.71549775]
[1727875417513,0.000818,61087.0,61086.0,0.72679357]
[1727875417729,0.02647942,61087.0,61086.0,0.72679357]
[1727875417946,0.000818,61087.0,61086.0,0.72679357]
[1727875418381,0.000818,61087.0,61086.0,0.72879357]
[1727875419102,0.000818,61087.0,61086.0,0.74279357]
[1727875419540,0.000818,61095.0,61094.0,0.203512]
[1727875419756,0.000818,61095.0,61094.0,1.06353721]
[1727875419978,0.000818,61095.0,61094.0,1.1203444]
[1727875420203,0.000818,61095.0,61094.0,1.02248]
[1727875420423,0.24625083,61106.0,61098.0,0.72806122]
[1727875420640,0.24625083,61106.0,61098.0,0.89275567]
[1727875420854,0.24625083,61106.0,61098.0,1.12269357]
[1727875421489,0.24625083,61106.0,61098.0,1.09821438]
[1727875421907,0.24625083,61106.0,61098.0,1.04936106]
[1727875422554,0.24625083,61106.0,61098.0,1.06136106]
[1727875422806,0.24625083,61106.0,61098.0,1.05636106]
[1727875423021,0.24625083,61106.0,61098.0,1.07536106]
[1727875423442,0.24625083,61106.0,61098.0,1.06136106]
[1727875423675,0.24625083,61106.0,61098.0,1.04236106]
[1727875424110,0.24625083,61106.0,61098.0,0.89076106]
[1727875424559,0.00201569,61105.0,61098.0,0.35310639]
[1727875424803,0.24625083,61106.0,61098.0,0.35310639]
[1727875425086,0.24625083,61106.0,61098.0,0.36710639]
[1727875425513,0.24625083,61106.0,61098.0,0.35310639]
[1727875425722,0.24625083,61106.0,61098.0,0.36710639]
[1727875426136,0.001018,61099.0,61098.0,0.36710639]
[1727875426361,0.001018,61099.0,61098.0,0.38110639]
[1727875426583,0.001018,61099.0,61098.0,0.73766106]
[1727875427637,0.001018,61099.0,61098.0,0.81856106]
[1727875427844,0.001018,61099.0,61098.0,0.92056106]
[1727875428308,0.001018,61099.0,61098.0,0.92556106]
[1727875428547,0.001018,61099.0,61098.0,1.04636106]
[1727875429051,0.001018,61099.0,61098.0,1.06936106]
[1727875429301,0.001018,61099.0,61098.0,1.06036106]
[1727875429543,0.001018,61099.0,61098.0,1.04836106]
[1727875429803,0.001018,61099.0,61098.0,1.06236106]
[1727875430093,0.001018,61099.0,61098.0,1.07636106]
[1727875430317,0.001018,61099.0,61098.0,1.04836106]
[1727875431107,0.001018,61099.0,61098.0,1.06236106]
[1727875431880,0.001018,61099.0,61098.0,1.07636106]
[1727875432121,0.001018,61099.0,61098.0,1.06236106]
[1727875432371,0.001018,61099.0,61098.0,1.07636106]
[1727875432674,0.001018,61099.0,61098.0,1.06036106]
[1727875432890,0.001018,61099.0,61098.0,1.07436106]
[1727875433597,0.001018,61099.0,61098.0,0.91856106]
[1727875437942,0.001018,61099.0,61098.0,0.92356106]
[1727875438368,0.001018,61099.0,61098.0,0.73170084]
[1727875438581,0.001018,61099.0,61098.0,0.92356106]
[1727875439502,0.001018,61099.0,61098.0,0.64580084]
[1727875439719,0.001018,61099.0,61098.0,0.48110639]
[1727875440147,0.001018,61099.0,61098.0,0.83766106]
[1727875440406,0.001018,61099.0,61098.0,0.82366106]
[1727875440615,0.001018,61099.0,61098.0,0.83766106]
[1727875441251,0.001018,61099.0,61098.0,0.80966106]
[1727875441463,0.001018,61099.0,61098.0,0.82366106]
[1727875441667,0.001018,61099.0,61098.0,0.80966106]
[1727875442110,0.001018,61099.0,61098.0,0.82366106]
[1727875442957,0.001018,61099.0,61098.0,0.83766106]
[1727875443605,0.00201569,61112.0,61106.0,0.005]
[1727875443845,0.0002,61119.0,61115.0,0.196455]
[1727875443846,0.24625083,61116.0,61115.0,0.196455]
[1727875444101,0.24625083,61116.0,61115.0,0.38831522]
[1727875444330,0.0002,61119.0,61118.0,0.196447]
[1727875444755,0.0002,61119.0,61118.0,0.20772998]
[1727875446906,0.0002,61119.0,61118.0,0.22172998]
[1727875447337,0.0002,61119.0,61118.0,0.23572998]
[1727875447765,0.0002,61119.0,61118.0,0.37066558]
[1727875448442,0.0811,61119.0,61118.0,0.07211298]
[1727875448680,0.0811,61119.0,61118.0,0.03928298]
[1727875448890,0.0002,61119.0,61118.0,0.20289998]
[1727875449101,0.0002,61119.0,61118.0,0.34598996]
[1727875449349,0.0002,61119.0,61118.0,0.33198996]